fUSD/lending_fUSD_20250826
["ID","MTS","AMOUNT","RATE_DAILY","PERIOD"]
[381394330,1756185061787,-1500.0,0.00014795,2]
[381394331,1756185061796,-1500.0,0.00014795,2]
[381394332,1756185061808,-1500.0,0.00014795,2]
[381394333,1756185061818,-173.7,0.00014795,2]
[381394334,1756185061827,-150.0,0.00014795,2]
[381394335,1756185061836,-151.0,0.00014804,2]
[381394336,1756185061846,-151.0,0.00014805,2]
[381394337,1756185061855,-1502.88809515,0.00014829,2]
[381394338,1756185061865,-1500.0,0.00014829,2]
[381394339,1756185061875,-851.0,0.00014833,2]
[381394340,1756185061886,-151.0,0.00014834,2]
[381394341,1756185061895,-968.83319447,0.00014846,2]
[381394342,1756185061904,-1500.0,0.00014846,2]
[381394343,1756185061914,-1500.0,0.00014846,2]
[381394344,1756185061925,-1500.0,0.00014846,2]
[381394345,1756185061935,-1500.0,0.00014846,2]
[381394346,1756185061946,-1500.0,0.00014846,2]
[381394347,1756185061956,-1500.0,0.00014846,2]
[381394348,1756185061966,-1004.11736908,0.00014846,2]
[381394349,1756185061976,-1500.0,0.00014846,2]
[381394350,1756185061986,-892.62702972,0.00014846,2]
[381394351,1756185061997,-1500.0,0.00014846,2]
[381394352,1756185062007,-1500.0,0.00014846,2]
[381394353,1756185062017,-501.28203494,0.00014846,2]
[381394354,1756185062027,-1500.0,0.00014846,2]
[381394355,1756185062036,-1500.0,0.00014846,2]
[381394356,1756185062045,-331.99011097,0.00014848,2]
[381394357,1756185062055,-500.0,0.00014858,2]
[381394358,1756185062065,-573.0,0.00014858,2]
[381394359,1756185062075,-166.66,0.00014901,2]
[381394360,1756185062085,-168.0,0.00014901,2]
[381394361,1756185062095,-173.76,0.00014904,2]
[381394362,1756185062105,-539.68,0.00014904,2]
[381394363,1756185062114,-2315.0,0.00014907,2]
[381394364,1756185062124,-500.0,0.00014907,2]
[381394365,1756185062134,-151.0,0.0001491,2]
[381394366,1756185062143,-151.0,0.00014979,2]
[381394367,1756185062153,-151.0,0.00014993,2]
[381394368,1756185062162,-5762.6947434,0.00015,2]
[381394369,1756185062172,-27003.58,0.00015,2]
[381394370,1756185062181,-151.0,0.00015012,2]
[381394371,1756185062191,-151.0,0.00015012,2]
[381394372,1756185062200,-151.0,0.00015012,2]
[381394373,1756185062209,-151.0,0.00015012,2]
[381394374,1756185062218,-151.0,0.00015012,2]
[381394375,1756185062228,-151.0,0.00015012,2]
[381394376,1756185062237,-151.0,0.00015012,2]
[381394377,1756185062247,-151.0,0.00015012,2]
[381394378,1756185062256,-151.0,0.00015012,2]
[381394379,1756185062265,-152.855553,0.00015012,2]
[381394380,1756185062274,-151.0,0.00015012,2]
[381394381,1756185062283,-151.0,0.00015012,2]
[381394382,1756185062292,-151.0,0.00015012,2]
[381394383,1756185062301,-151.0,0.00015012,2]
[381394384,1756185062310,-151.0,0.00015012,2]
[381394385,1756185062319,-151.0,0.00015012,2]
[381394386,1756185062328,-151.0,0.00015012,2]
[381394387,1756185062337,-151.0,0.00015012,2]
[381394388,1756185062346,-151.0,0.00015012,2]
[381394389,1756185062356,-151.0,0.00015012,2]
[381394390,1756185062365,-151.0,0.00015012,2]
[381394391,1756185062374,-151.0,0.00015012,2]
[381394392,1756185062383,-151.0,0.00015012,2]
[381394393,1756185062392,-151.0,0.00015012,2]
[381394394,1756185062402,-151.0,0.00015012,2]
[381394395,1756185062411,-151.0,0.00015012,2]
[381394396,1756185062420,-151.0,0.00015012,2]
[381394397,1756185062429,-151.0,0.00015012,2]
[381394398,1756185062439,-151.0,0.00015012,2]
[381394399,1756185062449,-151.0,0.00015012,2]
[381394400,1756185062458,-151.0,0.00015012,2]
[381394401,1756185062467,-165.446953,0.00015012,2]
[381394402,1756185062477,-151.0,0.00015012,2]
[381394403,1756185062487,-151.0,0.00015012,2]
[381394404,1756185062497,-151.0,0.00015012,2]
[381394405,1756185062506,-151.0,0.00015012,2]
[381394406,1756185062515,-151.0,0.00015012,2]
[381394407,1756185062525,-151.0,0.00015012,2]
[381394408,1756185062534,-151.0,0.00015012,2]
[381394409,1756185062543,-151.0,0.00015012,2]
[381394410,1756185062552,-151.0,0.00015012,2]
[381394411,1756185062561,-151.0,0.00015012,2]
[381394412,1756185062570,-152.475387,0.00015012,2]
[381394413,1756185062580,-151.0,0.00015012,2]
[381394414,1756185062589,-151.0,0.00015012,2]
[381394415,1756185062599,-151.0,0.00015012,2]
[381394416,1756185062609,-151.0,0.00015012,2]
[381394417,1756185062618,-151.0,0.00015012,2]
[381394418,1756185062627,-244.248112,0.00015012,2]
[381394419,1756185062636,-174.002456,0.00015012,2]
[381394420,1756185062646,-151.0,0.00015012,2]
[381394421,1756185062655,-151.0,0.00015012,2]
[381394422,1756185062664,-151.0,0.00015012,2]
[381394423,1756185062673,-151.0,0.00015012,2]
[381394424,1756185062682,-151.0,0.00015012,2]
[381394425,1756185062693,-153.157443,0.00015012,2]
[381394426,1756185062704,-151.0,0.00015012,2]
[381394427,1756185062714,-151.0,0.00015012,2]
[381394428,1756185062723,-151.0,0.00015012,2]
[381394429,1756185062734,-151.0,0.00015012,2]
[381394430,1756185062749,-250.404867,0.00015012,2]
[381394431,1756185062758,-151.0,0.00015012,2]
[381394432,1756185062768,-222.102208,0.00015012,2]
[381394433,1756185062777,-151.0,0.00015012,2]
[381394434,1756185062787,-151.0,0.00015012,2]
[381394435,1756185062796,-211.04233107,0.00015013,2]
[381394436,1756185062806,-851.0,0.00015021,2]
[381394437,1756185062815,-168.0,0.00015025,2]
[381394438,1756185062824,-230.41074132,0.00015041,2]
[381394439,1756185062833,-799.46,0.00015054,2]
[381394440,1756185062843,-799.46,0.00015054,2]
[381394441,1756185062851,-1000.0,0.00015057,2]
[381394442,1756185062861,-300.0,0.00015068,2]
[381394443,1756185062870,-555.69,0.00015068,2]
[381394444,1756185062879,-443.78,0.00015068,2]
[381394445,1756185062888,-821.17,0.00015068,2]
[381394446,1756185062897,-1075.62,0.00015068,2]
[381394447,1756185062906,-347.4,0.00015068,2]
[381394448,1756185062916,-1185.82,0.00015068,2]
[381394449,1756185062925,-150.0,0.00015068,2]
[381394450,1756185062935,-817.07,0.00015068,2]
[381394451,1756185062944,-1185.82,0.00015068,2]
[381394452,1756185062954,-150.0,0.00015068,2]
[381394453,1756185062963,-1079.27,0.00015068,2]
[381394454,1756185062973,-351.67,0.00015068,2]
[381394455,1756185062982,-408.65,0.00015068,2]
[381394456,1756185062994,-173.79,0.00015068,2]
[381394457,1756185063003,-408.65,0.00015068,2]
[381394458,1756185063335,-150.0,0.00015068,2]
[381394459,1756185063403,-539.77,0.00015068,2]
[381394460,1756185063413,-173.79,0.00015068,2]
[381394461,1756185063422,-1185.82,0.00015068,2]
[381394462,1756185063432,-539.77,0.00015068,2]
[381394463,1756185063443,-408.65,0.00015068,2]
[381394464,1756185063453,-150.0,0.00015068,2]
[381394465,1756185063463,-1185.82,0.00015068,2]
[381394466,1756185063473,-173.79,0.00015068,2]
[381394467,1756185063483,-1000.0,0.00015115,2]
[381394468,1756185063493,-168.0,0.00015127,2]
[381394469,1756185063504,-500.0,0.00015132,2]
[381394470,1756185063513,-573.0,0.00015132,2]
[381394471,1756185063523,-2315.0,0.00015181,2]
[381394472,1756185063536,-500.0,0.00015181,2]
[381394473,1756185063547,-180.63,0.00015214,2]
[381394474,1756185063557,-1000.0,0.00015231,2]
[381394475,1756185063567,-1000.0,0.00015231,2]
[381394476,1756185063577,-1000.0,0.00015231,2]
[381394477,1756185063587,-447.08811952,0.00015231,2]
[381394478,1756185063597,-168.0,0.00015232,2]
[381394479,1756185063606,-500.0,0.00015267,2]
[381394480,1756185063616,-500.0,0.00015267,2]
[381394481,1756185063626,-500.0,0.00015267,2]
[381394482,1756185063636,-472.02135115,0.00015268,2]
[381394483,1756185063646,-151.0,0.00015286,2]
[381394484,1756185063656,-151.0,0.00015286,2]
[381394485,1756185063666,-151.0,0.00015286,2]
[381394486,1756185063676,-151.0,0.00015286,2]
[381394487,1756185063686,-151.0,0.00015286,2]
[381394488,1756185063702,-151.0,0.00015286,2]
[381394489,1756185063712,-151.0,0.00015286,2]
[381394490,1756185063722,-151.0,0.00015286,2]
[381394491,1756185063732,-151.0,0.00015286,2]
[381394492,1756185063743,-151.0,0.00015286,2]
[381394493,1756185063753,-151.0,0.00015286,2]
[381394494,1756185063763,-151.0,0.00015286,2]
[381394495,1756185063774,-151.0,0.00015286,2]
[381394496,1756185063784,-151.0,0.00015286,2]
[381394497,1756185063793,-275.268487,0.00015286,2]
[381394498,1756185063804,-150.0,0.00015295,2]
[381394499,1756185063813,-795.6489679,0.00015295,2]
[381394500,1756185063823,-1014.06241006,0.00015296,2]
[381394501,1756185063832,-1232.47585223,0.00015296,2]
[381394502,1756185063842,-1450.8892944,0.00015297,2]
[381394503,1756185063851,-1669.30273657,0.00015298,2]
[381394504,1756185063861,-1887.71617873,0.00015298,2]
[381394505,1756185063871,-2106.1296209,0.00015299,2]
[381394506,1756185063881,-2324.54306307,0.00015299,2]
[381394507,1756185063891,-2542.95650524,0.000153,2]
[381394508,1756185063900,-402.44710717,0.00015309,2]
[381394509,1756185063910,-151.0,0.0001531,2]
[381394510,1756185063920,-151.0,0.0001531,2]
[381394511,1756185063933,-151.0,0.0001531,2]
[381394512,1756185063943,-151.0,0.0001531,2]
[381394513,1756185063952,-1000.0,0.00015316,2]
[381394514,1756185063962,-736.0,0.00015326,2]
[381394515,1756185063972,-367.0,0.0001533,2]
[381394516,1756185063982,-2000.0,0.00015342,2]
[381394517,1756185063991,-2000.0,0.00015342,2]
[381394518,1756185064002,-417.10743411,0.00015342,2]
[381394519,1756185064014,-2000.0,0.00015342,2]
[381394520,1756185064024,-347.28,0.00015342,2]
[381394521,1756185064034,-150.0,0.00015342,2]
[381394522,1756185064044,-300.0,0.00015342,2]
[381394523,1756185064053,-309.54,0.00015342,2]
[381394524,1756185064063,-315.35,0.00015342,2]
[381394525,1756185064072,-150.0,0.00015342,2]
[381394526,1756185064082,-150.65,0.00015342,2]
[381394527,1756185064091,-771.6967099,0.0001535,2]
[381394528,1756185064100,-2466.23971482,0.0001535,2]
[381394529,1756185064110,-380.37735152,0.00015369,2]
[381394530,1756185064119,-539.0,0.0001537,2]
[381394531,1756185064128,-472.83011308,0.00015377,2]
[381394532,1756185064137,-2000.0,0.00015394,2]
[381394533,1756185064147,-502.07266514,0.00015394,2]
[381394534,1756185064156,-2000.0,0.00015394,2]
[381394535,1756185064165,-2000.0,0.00015394,2]
[381394536,1756185064175,-1502.60865915,0.00015394,2]
[381394537,1756185064184,-2000.0,0.00015394,2]
[381394538,1756185064194,-1652.66068269,0.00015394,2]
[381394539,1756185064204,-2000.0,0.00015394,2]
[381394540,1756185064213,-734.48056583,0.00015394,2]
[381394541,1756185064224,-651.18306465,0.00015394,2]
[381394542,1756185064233,-2000.0,0.00015394,2]
[381394543,1756185064244,-619.79782947,0.000154,2]
[381394544,1756185064253,-500.0,0.00015406,2]
[381394545,1756185064263,-573.0,0.00015406,2]
[381394546,1756185064272,-168.0,0.00015431,2]
[381394547,1756185064281,-190.0,0.00015432,2]
[381394548,1756185064291,-2315.0,0.00015455,2]
[381394549,1756185064300,-331.68309883,0.00015455,2]
[381394550,1756185064310,-190.0,0.00015478,2]
[381394551,1756185064319,-190.0,0.00015496,2]
[381394552,1756185064330,-8029.78,0.000155,2]
[381394553,1756185064340,-15228.12,0.000155,2]
[381394554,1756185064350,-823.0,0.00015545,2]
[381394555,1756185064359,-190.0,0.00015578,2]
[381394556,1756185064369,-1249.0,0.00015601,2]
[381394557,1756185064378,-190.0,0.00015618,2]
[381394558,1756185064388,-190.0,0.00015628,2]
[381394559,1756185064398,-1500.0,0.00015663,2]
[381394560,1756185064408,-211.04233107,0.00015675,2]
[381394561,1756185064418,-500.0,0.0001568,2]
[381394562,1756185064427,-573.0,0.0001568,2]
[381394563,1756185064436,-153.94,0.00015709,2]
[381394564,1756185064446,-2315.0,0.00015729,2]
[381394565,1756185064455,-555.69,0.00015753,2]
[381394566,1756185064465,-190.0,0.00015757,2]
[381394567,1756185064474,-1179.05146911,0.00015779,2]
[381394568,1756185064484,-1500.0,0.00015779,2]
[381394569,1756185064497,-1500.0,0.00015779,2]
[381394570,1756185064507,-1000.0,0.00015815,2]
[381394571,1756185064516,-294.74950979,0.00015815,2]
[381394572,1756185064526,-1000.0,0.00015815,2]
[381394573,1756185064538,-153.93852965,0.0001584,2]
[381394574,1756185064548,-166.68,0.0001586,2]
[381394575,1756185064558,-176.94,0.0001587,2]
[381394576,1756185064567,-1000.0,0.0001589,2]
[381394577,1756185064577,-1000.0,0.0001589,2]
[381394578,1756185064586,-693.2307147,0.0001589,2]
[381394579,1756185064596,-2547.0,0.0001589,2]
[381394580,1756185064605,-220.12734939,0.0001589,2]
[381394581,1756185064615,-1352.9675257,0.0001589,2]
[381394582,1756185064624,-784.05329204,0.0001589,2]
[381394583,1756185064634,-150.0,0.0001589,2]
[381394584,1756185064644,-539.77,0.0001589,2]
[381394585,1756185064653,-150.0,0.0001589,2]
[381394586,1756185064663,-1079.27,0.0001589,2]
[381394587,1756185064672,-150.0,0.0001589,2]
[381394588,1756185064681,-539.77,0.0001589,2]
[381394589,1756185064691,-1185.82,0.0001589,2]
[381394590,1756185064705,-1185.82,0.0001589,2]
[381394591,1756185064715,-539.77,0.0001589,2]
[381394592,1756185064724,-150.0,0.0001589,2]
[381394593,1756185064734,-1185.82,0.0001589,2]
[381394594,1756185064745,-150.0,0.0001589,2]
[381394595,1756185064754,-150.0,0.0001589,2]
[381394596,1756185064764,-150.0,0.0001589,2]
[381394597,1756185064774,-166.06,0.0001589,2]
[381394598,1756185064783,-166.12,0.0001589,2]
[381394599,1756185064792,-600.0,0.000159,5]
[381394600,1756185064801,-190.0,0.00015942,2]
[381394601,1756185064811,-699.65794087,0.00015942,2]
[381394602,1756185064820,-2500.0,0.00015942,2]
[381394603,1756185064829,-2500.0,0.00015942,2]
[381394604,1756185064839,-310.18600903,0.00015942,2]
[381394605,1756185064849,-2500.0,0.00015942,2]
[381394606,1756185064858,-2500.0,0.00015942,2]
[381394607,1756185064867,-500.0,0.00015954,2]
[381394608,1756185064876,-573.0,0.00015954,2]
[381394609,1756185064886,-380.37735152,0.00015966,2]
[381394610,1756185064895,-868.45303706,0.00015971,2]
[381394611,1756185064905,-15460.55361583,0.00015992,2]
[381394612,1756185064914,-2315.0,0.00016003,2]
[381394613,1756185064924,-799.46,0.00016013,2]
[381394614,1756185064933,-359.95,0.00016013,2]
[381394615,1756185064943,-469.22,0.00016016,2]
[381394616,1756185064953,-469.22,0.00016016,2]
[381394617,1756185064964,-469.22,0.00016016,2]
[381394618,1756185064974,-2031.0,0.0001606,2]
[381394619,1756185064984,-3374.0,0.0001606,2]
[381394620,1756185064993,-1658.0,0.0001606,2]
[381394621,1756185065003,-190.0,0.00016062,2]
[381394622,1756185065014,-1425.0,0.00016098,2]
[381394623,1756185065023,-1000.0,0.00016107,2]
[381394624,1756185065033,-566.0,0.0001611,2]
[381394625,1756185065044,-602.624,0.0001611,2]
[381394626,1756185065054,-1298.0,0.0001611,2]
[381394627,1756185065064,-6146.0,0.0001611,2]
[381394628,1756185065076,-21104.0,0.0001611,2]
[381394629,1756185065085,-718.0,0.0001611,2]
[381394630,1756185065094,-4155.0,0.0001611,2]
[381394631,1756185065104,-346.65,0.00016162,2]
[381394632,1756185065113,-277.35679052,0.00016162,2]
[381394633,1756185065123,-334.5472959,0.00016162,2]
[381394634,1756185065133,-164.77,0.00016164,2]
[381394635,1756185065143,-726.8,0.00016164,2]
[381394636,1756185065153,-173.79,0.00016164,2]
[381394637,1756185065163,-173.79,0.00016164,2]
[381394638,1756185065173,-173.52,0.00016164,2]
[381394639,1756185065183,-533.62,0.00016164,2]
[381394640,1756185065193,-1086.42,0.00016164,2]
[381394641,1756185065203,-539.68,0.00016164,2]
[381394642,1756185065214,-300.56,0.00016164,2]
[381394643,1756185065225,-200.0,0.00016166,2]
[381394644,1756185065236,-200.0,0.00016166,2]
[381394645,1756185065247,-200.0,0.00016167,2]
[381394646,1756185065256,-200.0,0.00016167,2]
[381394647,1756185065266,-200.0,0.00016167,2]
[381394648,1756185065276,-1000.0,0.00016201,2]
[381394649,1756185065286,-1217.7069003,0.00016211,2]
[381394650,1756185065296,-500.0,0.00016228,2]
[381394651,1756185065306,-573.0,0.00016228,2]
[381394652,1756185065316,-9036.66551561,0.00016238,2]
[381394653,1756185065326,-2315.0,0.00016277,2]
[381394654,1756185065337,-854.0,0.000163,2]
[381394655,1756185065347,-1642.0,0.000163,2]
[381394656,1756185065357,-350.0,0.00016325,2]
[381394657,1756185065367,-2000.0,0.00016327,2]
[381394658,1756185065377,-2000.0,0.00016327,2]
[381394659,1756185065387,-190.0,0.00016328,2]
[381394660,1756185065396,-211.04233107,0.00016338,2]
[381394661,1756185065406,-1489.0,0.00016356,2]
[381394662,1756185065416,-1500.0,0.00016363,2]
[381394663,1756185065426,-1500.0,0.00016363,2]
[381394664,1756185065436,-1125.52305538,0.0001637,2]
[381394665,1756185065445,-1000.0,0.0001637,2]
[381394666,1756185065455,-150.0,0.00016381,2]
[381394667,1756185065465,-811.42996526,0.00016381,2]
[381394668,1756185065474,-1034.17544592,0.00016382,2]
[381394669,1756185065483,-1256.92092658,0.00016383,2]
[381394670,1756185065493,-1479.66640723,0.00016383,2]
[381394671,1756185065502,-1702.41188789,0.00016384,2]
[381394672,1756185065512,-1925.15736855,0.00016385,2]
[381394673,1756185065522,-2147.90284921,0.00016386,2]
[381394674,1756185065531,-2370.64832987,0.00016386,2]
[381394675,1756185065541,-2593.39381053,0.00016387,2]
[381394676,1756185065550,-387307.74166634,0.00016397,2]
[381394677,1756185065561,-329034.49853566,0.000164,3]
[381394678,1756185065570,-650106.75159003,0.000164,3]
[381394679,1756185065580,-265168.15275513,0.000164,3]
[381394680,1756185065592,-212.18043798,0.000164,3]
[381394681,1756185065601,-458.7662338,0.000164,3]
[381394682,1756185065611,-1000.0,0.00016425,2]
[381394683,1756185065621,-440.0,0.0001643,2]
[381394684,1756185065631,-400.0,0.00016438,2]
[381394685,1756185065640,-400.0,0.00016438,2]
[381394686,1756185065650,-400.0,0.00016438,2]
[381394687,1756185065659,-500.0,0.00016438,2]
[381394688,1756185065668,-400.0,0.00016438,2]
[381394689,1756185065678,-400.0,0.00016438,2]
[381394690,1756185065687,-400.0,0.00016438,2]
[381394691,1756185065699,-400.0,0.00016438,2]
[381394692,1756185065708,-400.0,0.00016438,2]
[381394693,1756185065718,-400.0,0.00016438,2]
[381394694,1756185065727,-400.0,0.00016438,2]
[381394695,1756185065742,-400.0,0.00016438,2]
[381394696,1756185065752,-400.0,0.00016438,2]
[381394697,1756185065762,-400.0,0.00016438,2]
[381394698,1756185065772,-400.0,0.00016438,2]
[381394699,1756185065781,-400.0,0.00016438,2]
[381394700,1756185065790,-400.0,0.00016438,2]
[381394701,1756185065799,-400.2209985,0.00016438,2]
[381394702,1756185065809,-401.45971736,0.00016438,2]
[381394703,1756185065817,-400.0,0.00016438,2]
[381394704,1756185065827,-400.0,0.00016438,2]
[381394705,1756185065835,-400.0,0.00016438,2]
[381394706,1756185065845,-401.05706056,0.00016438,2]
[381394707,1756185065854,-400.0,0.00016438,2]
[381394708,1756185065863,-400.91013387,0.00016438,2]
[381394709,1756185065873,-400.0,0.00016438,2]
[381394710,1756185065882,-400.93152044,0.00016438,2]
[381394711,1756185065892,-401.48153134,0.00016438,2]
[381394712,1756185065901,-400.0,0.00016438,2]
[381394713,1756185065910,-400.0,0.00016438,2]
[381394714,1756185065919,-400.0,0.00016438,2]
[381394715,1756185065929,-400.0,0.00016438,2]
[381394716,1756185065939,-1266.19,0.00016438,2]
[381394717,1756185065949,-400.0,0.00016438,2]
[381394718,1756185065958,-400.0,0.00016438,2]
[381394719,1756185065967,-400.0,0.00016438,2]
[381394720,1756185065976,-400.0,0.00016438,2]
[381394721,1756185065986,-445.05123394,0.00016438,2]
[381394722,1756185065996,-400.0,0.00016438,2]
[381394723,1756185066006,-400.0,0.00016438,2]
[381394724,1756185066016,-919.63,0.00016438,2]
[381394725,1756185066025,-400.0,0.00016438,2]
[381394726,1756185066034,-400.0,0.00016438,2]
[381394727,1756185066043,-500.0,0.00016438,2]
[381394728,1756185066052,-500.0,0.00016438,2]
[381394729,1756185066062,-500.0,0.00016438,2]
[381394730,1756185066071,-500.0,0.00016438,2]
[381394731,1756185066080,-500.0,0.00016438,2]
[381394732,1756185066089,-500.0,0.00016438,2]
[381394733,1756185066098,-400.0,0.00016438,2]
[381394734,1756185066107,-500.0,0.00016438,2]
[381394735,1756185066116,-500.0,0.00016438,2]
[381394736,1756185066125,-500.0,0.00016438,2]
[381394737,1756185066134,-500.0,0.00016438,2]
[381394738,1756185066143,-500.0,0.00016438,2]
[381394739,1756185066152,-745.29,0.00016438,2]
[381394740,1756185066161,-500.0,0.00016438,2]
[381394741,1756185066171,-500.0,0.00016438,2]
[381394742,1756185066180,-500.0,0.00016438,2]
[381394743,1756185066189,-500.0,0.00016438,2]
[381394744,1756185066199,-428.66086817,0.00016438,2]
[381394745,1756185066209,-400.0,0.00016438,2]
[381394746,1756185066218,-400.75317999,0.00016438,2]
[381394747,1756185066228,-655.13,0.00016438,2]
[381394748,1756185066237,-401.09346647,0.00016438,2]
[381394749,1756185066247,-798.65,0.00016438,2]
[381394750,1756185066256,-1184.86,0.00016438,2]
[381394751,1756185066266,-400.0,0.00016438,2]
[381394752,1756185066275,-188.59400494,0.00016438,2]
[381394753,1756185066284,-400.0,0.00016438,2]
[381394754,1756185066293,-731.86,0.00016438,2]
[381394755,1756185066302,-666.29,0.00016438,2]
[381394756,1756185066313,-1133.88,0.00016438,2]
[381394757,1756185066325,-400.0,0.00016438,2]
[381394758,1756185066335,-400.0,0.00016438,2]
[381394759,1756185066345,-400.0,0.00016438,2]
[381394760,1756185066354,-400.0,0.00016438,2]
[381394761,1756185066363,-400.0,0.00016438,2]
[381394762,1756185066374,-797.53,0.00016438,2]
[381394763,1756185066384,-400.0,0.00016438,2]
[381394764,1756185066394,-1547.04,0.00016438,2]
[381394765,1756185066403,-1036.12,0.00016438,2]
[381394766,1756185066412,-609.39,0.00016438,2]
[381394767,1756185066422,-400.30911929,0.00016438,2]
[381394768,1756185066433,-400.0,0.00016438,2]
[381394769,1756185066443,-400.0,0.00016438,2]
[381394770,1756185066452,-464.99,0.00016438,2]
[381394771,1756185066461,-400.0,0.00016438,2]
[381394772,1756185066470,-400.0,0.00016438,2]
[381394773,1756185066480,-400.0,0.00016438,2]
[381394774,1756185066490,-400.0,0.00016438,2]
[381394775,1756185066499,-827.29,0.00016438,2]
[381394776,1756185066509,-415.22,0.00016438,2]
[381394777,1756185066518,-400.0,0.00016438,2]
[381394778,1756185066527,-400.0,0.00016438,2]
[381394779,1756185066537,-400.0,0.00016438,2]
[381394780,1756185066547,-764.28,0.00016438,2]
[381394781,1756185066556,-400.47407955,0.00016438,2]
[381394782,1756185066565,-400.0,0.00016438,2]
[381394783,1756185066575,-1443.29,0.00016438,2]
[381394784,1756185066584,-1136.83,0.00016438,2]
[381394785,1756185066593,-400.0,0.00016438,2]
[381394786,1756185066602,-400.0,0.00016438,2]
[381394787,1756185066611,-660.63,0.00016438,2]
[381394788,1756185066620,-617.5,0.00016438,2]
[381394789,1756185066630,-764.69,0.00016438,2]
[381394790,1756185066639,-400.0,0.00016438,2]
[381394791,1756185066648,-400.0,0.00016438,2]
[381394792,1756185066658,-400.0,0.00016438,2]
[381394793,1756185066667,-400.0,0.00016438,2]
[381394794,1756185066676,-541.83,0.00016438,2]
[381394795,1756185066685,-400.0,0.00016438,2]
[381394796,1756185066698,-1159.27,0.00016438,2]
[381394797,1756185066707,-401.4667376,0.00016438,2]
[381394798,1756185066717,-729.09,0.00016438,2]
[381394799,1756185066726,-418.16,0.00016438,2]
[381394800,1756185066736,-400.0,0.00016438,2]
[381394801,1756185066746,-400.0,0.00016438,2]
[381394802,1756185066755,-647.47,0.00016438,2]
[381394803,1756185066765,-415.3,0.00016438,2]
[381394804,1756185066779,-400.70960625,0.00016438,2]
[381394805,1756185066788,-400.0,0.00016438,2]
[381394806,1756185066797,-444.7,0.00016438,2]
[381394807,1756185066806,-477.54,0.00016438,2]
[381394808,1756185066816,-1112.42,0.00016438,2]
[381394809,1756185066825,-1195.41,0.00016438,2]
[381394810,1756185066834,-400.74419161,0.00016438,2]
[381394811,1756185066843,-400.0,0.00016438,2]
[381394812,1756185066853,-400.0,0.00016438,2]
[381394813,1756185066863,-866.18,0.00016438,2]
[381394814,1756185066872,-1119.37,0.00016438,2]
[381394815,1756185066881,-400.0,0.00016438,2]
[381394816,1756185066891,-400.0,0.00016438,2]
[381394817,1756185066900,-621.68,0.00016438,2]
[381394818,1756185066909,-587.15,0.00016438,2]
[381394819,1756185066919,-400.0,0.00016438,2]
[381394820,1756185066928,-400.0,0.00016438,2]
[381394821,1756185066937,-465.78,0.00016438,2]
[381394822,1756185066947,-448.52,0.00016438,2]
[381394823,1756185066955,-201.09750984,0.00016438,2]
[381394824,1756185066964,-400.0,0.00016438,2]
[381394825,1756185066973,-2001.47,0.00016438,2]
[381394826,1756185066982,-608.27,0.00016438,2]
[381394827,1756185066992,-400.0,0.00016438,2]
[381394828,1756185067002,-1243.18,0.00016438,2]
[381394829,1756185067011,-916.84,0.00016438,2]